[Event "The Kvibergspelen 2024"]
[Site "Kviberg Park Hotel & Conference, Krutvagen 2, Gothenburg, Sweden"]
[Date "2024.09.08"]
[Round "8.6"]
[White "Wickstrom, Carina"]
[Black "Muntean, Victor"]
[Result "0-1"]
[TimeControl "15 minutes + 5 seconds per move from move one (Round 1 - 4) / 90 minutes + 30 seconds per move from move one (Round 5 - 8)"]
[WhiteFideId "1743201"]
[BlackFideId "1054414"]
[WhiteElo "2015"]
[BlackElo "2158"]

1. Nf3 {[%clk 01:30:26]} {[%emt 00:00:28]} Nf6 {[%clk 01:30:42]} {[%emt
00:00:23]} 2. g3 {[%clk 01:30:51]} {[%emt 00:00:05]} g6 {[%clk 01:31:02]}
{[%emt 00:00:10]} 3. Bg2 {[%clk 01:31:18]} {[%emt 00:00:04]} Bg7 {[%clk
01:31:29]} {[%emt 00:00:03]} 4. O-O {[%clk 01:31:42]} {[%emt 00:00:05]} O-O
{[%clk 01:31:55]} {[%emt 00:00:04]} 5. d4 {[%clk 01:32:06]} {[%emt 00:00:07]}
d6 {[%clk 01:32:20]} {[%emt 00:00:05]} 6. Nc3 {[%clk 01:32:27]} {[%emt
00:00:09]} Nc6 {[%clk 01:27:16]} {[%emt 00:05:34]} 7. d5 {[%clk 01:30:09]}
{[%emt 00:02:48]} Na5 {[%clk 01:22:02]} {[%emt 00:05:44]} 8. e4 {[%clk
01:26:42]} {[%emt 00:03:57]} c5 {[%clk 01:19:16]} {[%emt 00:03:15]} 9. h3
{[%clk 01:16:30]} {[%emt 00:10:41]} b5 {[%clk 01:16:22]} {[%emt 00:03:26]} 10.
e5 {[%clk 01:14:13]} {[%emt 00:02:47]} dxe5 {[%clk 01:14:11]} {[%emt 00:02:40]}
11. Nxb5 {[%clk 01:12:05]} {[%emt 00:02:39]} Nxd5 {[%clk 01:07:10]} {[%emt
00:07:31]} 12. Nxe5 {[%clk 01:00:09]} {[%emt 00:12:25]} Bxe5 {[%clk 01:01:20]}
{[%emt 00:06:21]} 13. Re1 {[%clk 00:52:22]} {[%emt 00:08:16]} Bg7 {[%clk
01:00:05]} {[%emt 00:01:45]} 14. Qxd5 {[%clk 00:51:35]} {[%emt 00:01:17]} Qxd5
{[%clk 01:00:22]} {[%emt 00:00:13]} 15. Bxd5 {[%clk 00:52:01]} {[%emt
00:00:04]} Rb8 {[%clk 01:00:46]} {[%emt 00:00:07]} 16. Nc3 {[%clk 00:49:08]}
{[%emt 00:03:23]} e6 {[%clk 00:57:49]} {[%emt 00:03:26]} 17. Bg2 {[%clk
00:44:27]} {[%emt 00:05:12]} Nc4 {[%clk 00:57:55]} {[%emt 00:00:24]} 18. Na4
{[%clk 00:44:43]} {[%emt 00:00:13]} Na3 {[%clk 00:49:04]} {[%emt 00:09:21]} 19.
Bf4 {[%clk 00:32:58]} {[%emt 00:12:15]} Rb4 {[%clk 00:47:46]} {[%emt 00:01:48]}
20. bxa3 {[%clk 00:28:57]} {[%emt 00:04:31]} Rxa4 {[%clk 00:48:06]} {[%emt
00:00:10]} 21. Rab1 {[%clk 00:28:19]} {[%emt 00:01:08]} Ba6 {[%clk 00:45:31]}
{[%emt 00:03:05]} 22. Bc1 {[%clk 00:25:36]} {[%emt 00:03:13]} Rd8 {[%clk
00:42:58]} {[%emt 00:03:03]} 23. Bc6 {[%clk 00:23:59]} {[%emt 00:02:08]} Rc4
{[%clk 00:42:29]} {[%emt 00:00:58]} 24. Bg5 {[%clk 00:19:37]} {[%emt 00:04:53]}
f6 {[%clk 00:40:36]} {[%emt 00:02:23]} 25. Be3 {[%clk 00:18:52]} {[%emt
00:01:14]} Rxc2 {[%clk 00:40:29]} {[%emt 00:00:36]} 26. Ba4 {[%clk 00:18:09]}
{[%emt 00:01:14]} Rc3 {[%clk 00:39:20]} {[%emt 00:01:39]} 27. Bb5 {[%clk
00:16:34]} {[%emt 00:02:06]} Bb7 {[%clk 00:34:02]} {[%emt 00:05:47]} 28. a4
{[%clk 00:15:42]} {[%emt 00:01:23]} Bf8 {[%clk 00:31:13]} {[%emt 00:03:18]} 29.
Red1 {[%clk 00:15:38]} {[%emt 00:00:34]} Rxd1+ {[%clk 00:31:06]} {[%emt
00:00:37]} 30. Rxd1 {[%clk 00:16:04]} {[%emt 00:00:04]} Bd5 {[%clk 00:31:22]}
{[%emt 00:00:13]} 31. Be8 {[%clk 00:14:29]} {[%emt 00:02:06]} Rc2 {[%clk
00:29:25]} {[%emt 00:02:26]} 32. g4 {[%clk 00:13:05]} {[%emt 00:01:55]} Rxa2
{[%clk 00:29:18]} {[%emt 00:00:37]} 33. Rb1 {[%clk 00:12:46]} {[%emt 00:00:48]}
c4 {[%clk 00:27:34]} {[%emt 00:02:14]} 34. Bd4 {[%clk 00:10:28]} {[%emt
00:02:49]} e5 {[%clk 00:27:16]} {[%emt 00:00:48]} 35. Bc3 {[%clk 00:10:15]}
{[%emt 00:00:43]} Bc5 {[%clk 00:27:07]} {[%emt 00:00:39]} 36. Rb5 {[%clk
00:08:33]} {[%emt 00:02:12]} Bxf2+ {[%clk 00:26:32]} {[%emt 00:01:05]} 37. Kf1
{[%clk 00:09:02]} {[%emt 00:00:01]} Be4 {[%clk 00:26:24]} {[%emt 00:00:38]} 38.
Bb4 {[%clk 00:07:36]} {[%emt 00:01:56]} Bd3+ {[%clk 00:25:16]} {[%emt
00:01:38]} 39. Kg2 {[%clk 00:08:04]} {[%emt 00:00:01]} Be4+ {[%clk 00:19:27]}
{[%emt 00:06:20]} 40. Kf1 {[%clk 00:08:15]} {[%emt 00:00:19]} Be3 {[%clk
00:19:44]} {[%emt 00:00:13]} 41. Rb8 {[%clk 00:06:31]} {[%emt 00:02:15]} Bd3+
{[%clk 00:20:03]} {[%emt 00:00:10]} 42. Ke1 {[%clk 00:06:57]} {[%emt 00:00:05]}
Ra1# {[%clk 00:20:29]} {[%emt 00:00:04]} 0-1

[Event "The Kvibergspelen 2024"]
[Site "Kviberg Park Hotel & Conference, Krutvagen 2, Gothenburg, Sweden"]
[Date "2024.09.08"]
[Round "8.7"]
[White "Johansson, William"]
[Black "Wahlstrom, Lennart"]
[Result "0-1"]
[TimeControl "15 minutes + 5 seconds per move from move one (Round 1 - 4) / 90 minutes + 30 seconds per move from move one (Round 5 - 8)"]
[WhiteFideId "1744070"]
[BlackFideId "1706829"]
[WhiteElo "1899"]
[BlackElo "2058"]

1. b3 {[%clk 01:29:33]} {[%emt 00:01:27]} e5 {[%clk 01:30:28]} {[%emt
00:00:31]} 2. Bb2 {[%clk 01:29:58]} {[%emt 00:00:06]} Nc6 {[%clk 01:30:49]}
{[%emt 00:00:09]} 3. c4 {[%clk 01:30:26]} {[%emt 00:00:02]} a6 {[%clk
01:30:19]} {[%emt 00:01:00]} 4. e3 {[%clk 01:30:47]} {[%emt 00:00:09]} Nf6
{[%clk 01:28:40]} {[%emt 00:02:09]} 5. Nc3 {[%clk 01:30:38]} {[%emt 00:00:38]}
d5 {[%clk 01:27:40]} {[%emt 00:01:30]} 6. cxd5 {[%clk 01:30:57]} {[%emt
00:00:12]} Nxd5 {[%clk 01:28:02]} {[%emt 00:00:08]} 7. Nxd5 {[%clk 01:26:22]}
{[%emt 00:05:06]} Qxd5 {[%clk 01:28:20]} {[%emt 00:00:10]} 8. Nf3 {[%clk
01:26:21]} {[%emt 00:00:31]} e4 {[%clk 01:17:54]} {[%emt 00:10:56]} 9. Bc4
{[%clk 01:20:35]} {[%emt 00:06:17]} Qh5 {[%clk 01:17:09]} {[%emt 00:01:14]} 10.
Ne5 {[%clk 01:20:31]} {[%emt 00:00:34]} Qxd1+ {[%clk 01:17:12]} {[%emt
00:00:27]} 11. Rxd1 {[%clk 01:20:58]} {[%emt 00:00:03]} Nxe5 {[%clk 01:16:41]}
{[%emt 00:01:01]} 12. Bxe5 {[%clk 01:21:25]} {[%emt 00:00:03]} c6 {[%clk
01:16:02]} {[%emt 00:01:10]} 13. f3 {[%clk 01:18:59]} {[%emt 00:02:56]} f6
{[%clk 01:11:19]} {[%emt 00:05:12]} 14. Bg3 {[%clk 01:16:06]} {[%emt 00:03:23]}
Bf5 {[%clk 01:09:40]} {[%emt 00:02:08]} 15. O-O {[%clk 01:15:30]} {[%emt
00:01:06]} exf3 {[%clk 01:05:44]} {[%emt 00:04:27]} 16. gxf3 {[%clk 01:15:33]}
{[%emt 00:00:28]} Bh3 {[%clk 01:03:43]} {[%emt 00:02:30]} 17. Rfe1 {[%clk
01:14:45]} {[%emt 00:01:18]} O-O-O {[%clk 01:01:45]} {[%emt 00:02:28]} 18. d4
{[%clk 01:14:19]} {[%emt 00:00:57]} h5 {[%clk 00:59:50]} {[%emt 00:02:24]} 19.
d5 {[%clk 01:13:53]} {[%emt 00:00:56]} Bb4 {[%clk 00:53:39]} {[%emt 00:06:41]}
20. Re2 {[%clk 01:13:18]} {[%emt 00:01:05]} b5 {[%clk 00:52:31]} {[%emt
00:01:38]} 21. a3 {[%clk 00:57:03]} {[%emt 00:16:46]} Bd6 {[%clk 00:43:54]}
{[%emt 00:09:06]} 22. Rc1 {[%clk 00:51:27]} {[%emt 00:06:07]} bxc4 {[%clk
00:42:53]} {[%emt 00:01:30]} 23. Rxc4 {[%clk 00:51:44]} {[%emt 00:00:13]} Bxg3
{[%clk 00:42:47]} {[%emt 00:00:36]} 24. Rxc6+ {[%clk 00:51:14]} {[%emt
00:01:00]} Kb7 {[%clk 00:39:48]} {[%emt 00:03:30]} 25. hxg3 {[%clk 00:51:34]}
{[%emt 00:00:09]} Rxd5 {[%clk 00:39:41]} {[%emt 00:00:37]} 26. Rec2 {[%clk
00:51:52]} {[%emt 00:00:12]} Rc8 {[%clk 00:38:18]} {[%emt 00:01:54]} 27. Rxc8
{[%clk 00:51:46]} {[%emt 00:00:36]} Bxc8 {[%clk 00:38:45]} {[%emt 00:00:03]} 28.
Kf2 {[%clk 00:51:15]} {[%emt 00:01:00]} a5 {[%clk 00:36:17]} {[%emt 00:02:59]}
29. a4 {[%clk 00:48:12]} {[%emt 00:03:33]} Be6 {[%clk 00:33:23]} {[%emt
00:03:23]} 30. e4 {[%clk 00:48:34]} {[%emt 00:00:08]} Re5 {[%clk 00:31:36]}
{[%emt 00:02:17]} 31. Ke3 {[%clk 00:47:18]} {[%emt 00:01:46]} Kb6 {[%clk
00:31:22]} {[%emt 00:00:44]} 32. Kd4 {[%clk 00:47:38]} {[%emt 00:00:10]} Rg5
{[%clk 00:30:55]} {[%emt 00:00:56]} 33. Rh2 {[%clk 00:46:55]} {[%emt 00:01:13]}
Rxg3 {[%clk 00:30:17]} {[%emt 00:01:08]} 34. Rxh5 {[%clk 00:47:11]} {[%emt
00:00:16]} Rxf3 {[%clk 00:29:52]} {[%emt 00:00:55]} 35. Rb5+ {[%clk 00:47:22]}
{[%emt 00:00:19]} Ka6 {[%clk 00:29:43]} {[%emt 00:00:38]} 36. b4 {[%clk
00:46:20]} {[%emt 00:01:32]} axb4 {[%clk 00:29:31]} {[%emt 00:00:42]} 37. Rxb4
{[%clk 00:46:47]} {[%emt 00:00:03]} Rb3 {[%clk 00:28:54]} {[%emt 00:01:06]} 38.
Rxb3 {[%clk 00:47:07]} {[%emt 00:00:12]} Bxb3 {[%clk 00:29:22]} {[%emt
00:00:02]} 39. e5 {[%clk 00:47:33]} {[%emt 00:00:03]} f5 {[%clk 00:23:02]}
{[%emt 00:00:45]} 0-1

[Event "The Kvibergspelen 2024"]
[Site "Kviberg Park Hotel & Conference, Krutvagen 2, Gothenburg, Sweden"]
[Date "2024.09.08"]
[Round "8.8"]
[White "Nilsson, Oliver"]
[Black "Nilsson, Patrik"]
[Result "0-1"]
[TimeControl "15 minutes + 5 seconds per move from move one (Round 1 - 4) / 90 minutes + 30 seconds per move from move one (Round 5 - 8)"]
[WhiteFideId "1730177"]
[BlackFideId "1708171"]
[WhiteElo "2050"]
[BlackElo "2124"]

1. d4 {[%clk 01:30:59]} f5 {[%clk 01:30:51]} {[%emt 00:00:08]} 2. Nc3 {[%clk
01:30:47]} {[%emt 00:00:42]} Nf6 {[%clk 01:31:12]} {[%emt 00:00:09]} 3. Bg5
{[%clk 01:29:44]} {[%emt 00:01:34]} d5 {[%clk 01:31:34]} {[%emt 00:00:08]} 4.
Bxf6 {[%clk 01:29:33]} {[%emt 00:00:40]} exf6 {[%clk 01:31:58]} {[%emt
00:00:07]} 5. e3 {[%clk 01:29:43]} {[%emt 00:00:19]} Be6 {[%clk 01:32:22]}
{[%emt 00:00:06]} 6. Bd3 {[%clk 01:29:48]} {[%emt 00:00:25]} Qd7 {[%clk
01:31:53]} {[%emt 00:00:58]} 7. Nge2 {[%clk 01:22:48]} {[%emt 00:07:31]} Nc6
{[%clk 01:32:02]} {[%emt 00:00:21]} 8. a3 {[%clk 01:22:18]} {[%emt 00:01:00]}
h5 {[%clk 01:30:40]} {[%emt 00:01:52]} 9. h4 {[%clk 01:21:14]} {[%emt
00:01:34]} O-O-O {[%clk 01:19:21]} {[%emt 00:11:49]} 10. b4 {[%clk 01:20:29]}
{[%emt 00:01:16]} Kb8 {[%clk 01:12:14]} {[%emt 00:07:37]} 11. Nf4 {[%clk
01:14:48]} {[%emt 00:06:08]} Bf7 {[%clk 01:11:51]} {[%emt 00:00:54]} 12. Be2
{[%clk 01:13:28]} {[%emt 00:01:51]} g6 {[%clk 01:09:22]} {[%emt 00:02:59]} 13.
Nd3 {[%clk 00:58:57]} {[%emt 00:15:01]} b6 {[%emt 00:08:09]} 14. Qb1 {[%clk
00:52:41]} Bd6 {[%clk 00:55:12]} {[%emt 00:13:47]} 15. a4 {[%clk 00:49:33]}
{[%emt 00:03:39]} Qe7 {[%clk 00:53:38]} {[%emt 00:02:03]} 16. Nc5 {[%clk
00:47:28]} {[%emt 00:02:35]} f4 {[%clk 00:46:38]} {[%emt 00:07:30]} 17. a5
{[%clk 00:39:24]} {[%emt 00:08:35]} fxe3 {[%clk 00:45:42]} {[%emt 00:01:26]} 18.
axb6 {[%clk 00:38:44]} {[%emt 00:01:09]} cxb6 {[%clk 00:45:02]} {[%emt
00:01:10]} 19. Rh3 {[%clk 00:14:59]} {[%emt 00:24:16]} exf2+ {[%clk 00:44:13]}
{[%emt 00:01:18]} 20. Kxf2 {[%clk 00:15:08]} {[%emt 00:00:21]} Rhe8 {[%clk
00:42:57]} {[%emt 00:01:45]} 21. Qd1 {[%clk 00:13:38]} {[%emt 00:02:00]} Bf4
{[%clk 00:32:09]} {[%emt 00:11:19]} 22. Bb5 {[%clk 00:10:55]} {[%emt 00:03:13]}
Be3+ {[%clk 00:31:56]} {[%emt 00:00:43]} 23. Kf1 {[%clk 00:10:45]} {[%emt
00:00:40]} Nxd4 {[%clk 00:31:56]} {[%emt 00:00:30]} 24. Na6+ {[%clk 00:07:02]}
{[%emt 00:04:13]} Kb7 {[%clk 00:31:10]} {[%emt 00:01:16]} 25. Bxe8 {[%clk
00:06:42]} {[%emt 00:00:51]} Rxe8 {[%clk 00:31:11]} {[%emt 00:00:28]} 26. Qd3
{[%clk 00:06:52]} {[%emt 00:00:20]} Nc6 {[%clk 00:08:07]} {[%emt 00:23:34]} 27.
Nxd5 {[%clk 00:02:08]} {[%emt 00:05:14]} Bxd5 {[%clk 00:05:51]} {[%emt
00:02:46]} 28. Qxd5 {[%clk 00:02:37]} {[%emt 00:00:02]} Bd4 {[%clk 00:06:07]}
{[%emt 00:00:13]} 29. Re3 {[%clk 00:00:41]} {[%emt 00:02:26]} Bxe3 {[%clk
00:04:29]} {[%emt 00:02:08]} 30. b5 {[%clk 00:01:08]} {[%emt 00:00:04]} Qe6
{[%clk 00:03:26]} {[%emt 00:01:32]} 31. bxc6+ {[%clk 00:01:08]} {[%emt
00:00:30]} Kc8 {[%clk 00:02:56]} {[%emt 00:01:00]} 32. c4 {[%clk 00:00:31]}
{[%emt 00:01:07]} Qg4 {[%clk 00:01:52]} {[%emt 00:01:34]} 33. Rd1 {[%clk
00:00:33]} {[%emt 00:00:29]} Qf4+ {[%clk 00:01:42]} {[%emt 00:00:39]} 34. Qf3
{[%clk 00:00:34]} {[%emt 00:00:29]} Qxc4+ {[%clk 00:01:46]} {[%emt 00:00:26]}
35. Qe2 {[%clk 00:00:59]} {[%emt 00:00:05]} Qxc6 {[%clk 00:01:50]} {[%emt
00:00:26]} 36. Nb4 {[%clk 00:00:33]} {[%emt 00:00:56]} Qe6 {[%clk 00:00:52]}
{[%emt 00:01:29]} 37. Qc2+ {[%clk 00:00:32]} {[%emt 00:00:30]} Bc5 {[%clk
00:01:07]} {[%emt 00:00:16]} 38. Qd3 {[%clk 00:00:31]} {[%emt 00:00:31]} Bxb4
{[%clk 00:01:06]} {[%emt 00:00:30]} 39. Rc1+ {[%clk 00:00:46]} {[%emt
00:00:16]} Bc5 {[%clk 00:01:30]} {[%emt 00:00:06]} 40. Qa6+ {[%clk 00:00:55]}
{[%emt 00:00:21]} Kb8 {[%clk 00:01:42]} {[%emt 00:00:17]} 41. Rxc5 {[%clk
00:00:31]} {[%emt 00:00:54]} Qe1# {[%clk 00:02:02]} {[%emt 00:00:09]} 0-1

[Event "The Kvibergspelen 2024"]
[Site "Kviberg Park Hotel & Conference, Krutvagen 2, Gothenburg, Sweden"]
[Date "2024.09.08"]
[Round "8.9"]
[White "Bengtsson, Siv"]
[Black "Nord, Alexander"]
[Result "0-1"]
[TimeControl "15 minutes + 5 seconds per move from move one (Round 1 - 4) / 90 minutes + 30 seconds per move from move one (Round 5 - 8)"]
[BlackTitle "CM"]
[WhiteFideId "1701673"]
[BlackFideId "1738135"]
[WhiteElo "1972"]
[BlackElo "2209"]

1. e4 {[%clk 01:30:57]} {[%emt 00:00:04]} c5 {[%clk 01:30:56]} {[%emt
00:00:04]} 2. Nf3 {[%clk 01:31:22]} {[%emt 00:00:05]} d6 {[%clk 01:31:22]}
{[%emt 00:00:04]} 3. d4 {[%clk 01:31:47]} {[%emt 00:00:04]} cxd4 {[%clk
01:31:48]} {[%emt 00:00:05]} 4. Nxd4 {[%clk 01:32:13]} {[%emt 00:00:04]} Nf6
{[%clk 01:32:10]} {[%emt 00:00:07]} 5. Nc3 {[%clk 01:32:40]} {[%emt 00:00:04]}
a6 {[%clk 01:32:35]} {[%emt 00:00:05]} 6. Be3 {[%clk 01:32:36]} {[%emt
00:00:35]} e5 {[%clk 01:32:52]} {[%emt 00:00:12]} 7. Nb3 {[%clk 01:32:39]}
{[%emt 00:00:27]} Be7 {[%clk 01:33:15]} {[%emt 00:00:06]} 8. f3 {[%clk
01:32:33]} {[%emt 00:00:36]} Be6 {[%clk 01:33:27]} {[%emt 00:00:18]} 9. Qd2
{[%clk 01:32:19]} {[%emt 00:00:45]} O-O {[%clk 01:33:47]} {[%emt 00:00:10]} 10.
O-O-O {[%emt 00:00:56]} Nbd7 {[%clk 01:34:12]} 11. g4 {[%clk 01:29:06]} {[%emt
00:03:22]} b5 {[%clk 01:34:31]} {[%emt 00:00:11]} 12. g5 {[%clk 01:25:50]}
{[%emt 00:03:46]} Nh5 {[%clk 01:34:27]} {[%emt 00:00:34]} 13. Kb1 {[%clk
01:21:34]} {[%emt 00:04:46]} Nb6 {[%clk 01:34:23]} {[%emt 00:00:33]} 14. Bxb6
{[%clk 01:17:17]} {[%emt 00:04:48]} Qxb6 {[%clk 01:34:48]} {[%emt 00:00:05]} 15.
Nd5 {[%clk 01:17:17]} {[%emt 00:00:30]} Bxd5 {[%clk 01:33:59]} {[%emt
00:01:19]} 16. exd5 {[%clk 01:17:38]} {[%emt 00:00:08]} a5 {[%clk 01:28:50]}
{[%emt 00:05:40]} 17. Nc1 {[%clk 01:17:18]} {[%emt 00:00:51]} b4 {[%clk
01:22:22]} {[%emt 00:06:57]} 18. Bd3 {[%clk 01:12:12]} {[%emt 00:05:35]} g6
{[%clk 01:15:02]} {[%emt 00:07:51]} 19. h4 {[%clk 01:10:47]} {[%emt 00:01:54]}
a4 {[%clk 01:06:12]} {[%emt 00:09:21]} 20. Be4 {[%clk 01:09:23]} {[%emt
00:01:54]} Rfc8 {[%clk 00:57:21]} {[%emt 00:09:20]} 21. Ne2 {[%clk 01:01:27]}
{[%emt 00:08:25]} Qc5 {[%clk 00:52:22]} {[%emt 00:05:29]} 22. Rhg1 {[%clk
00:49:13]} {[%emt 00:12:45]} Bd8 {[%clk 00:49:05]} {[%emt 00:03:48]} 23. f4
{[%clk 00:31:50]} {[%emt 00:17:52]} Nxf4 {[%clk 00:42:53]} {[%emt 00:06:43]} 24.
Nxf4 {[%clk 00:31:44]} {[%emt 00:00:36]} exf4 {[%clk 00:43:21]} {[%emt
00:00:01]} 25. h5 {[%clk 00:31:24]} {[%emt 00:00:51]} a3 {[%clk 00:38:02]}
{[%emt 00:05:50]} 26. hxg6 {[%clk 00:29:14]} {[%emt 00:02:39]} hxg6 {[%clk
00:20:17]} {[%emt 00:18:14]} 27. Qh2 {[%clk 00:20:51]} {[%emt 00:08:52]} axb2
{[%clk 00:14:23]} {[%emt 00:06:25]} 28. Rh1 {[%clk 00:19:34]} {[%emt 00:01:47]}
Qc3 {[%clk 00:14:34]} {[%emt 00:00:19]} 29. Bxg6 {[%clk 00:06:35]} {[%emt
00:13:29]} Qg7 {[%clk 00:14:50]} {[%emt 00:00:14]} 30. Bh7+ {[%clk 00:06:13]}
{[%emt 00:00:52]} Kf8 {[%clk 00:15:05]} {[%emt 00:00:16]} 31. Qxf4 {[%clk
00:06:17]} {[%emt 00:00:26]} Rxa2 {[%clk 00:14:47]} {[%emt 00:00:48]} 32. c4
{[%clk 00:00:53]} {[%emt 00:05:53]} Ra1+ {[%clk 00:14:53]} {[%emt 00:00:24]} 33.
Kc2 {[%clk 00:01:20]} {[%emt 00:00:03]} Qc3# {[%clk 00:14:46]} {[%emt
00:00:06]} 0-1

[Event "The Kvibergspelen 2024"]
[Site "Kviberg Park Hotel & Conference, Krutvagen 2, Gothenburg, Sweden"]
[Date "2024.09.08"]
[Round "8.10"]
[White "Andersson, Johan"]
[Black "Lehtonen, Ture"]
[Result "1/2-1/2"]
[TimeControl "15 minutes + 5 seconds per move from move one (Round 1 - 4) / 90 minutes + 30 seconds per move from move one (Round 5 - 8)"]
[WhiteFideId "1703935"]
[BlackFideId "1712446"]
[WhiteElo "2158"]
[BlackElo "2099"]

1. e4 {[%clk 01:30:55]} {[%emt 00:00:05]} e6 {[%clk 01:30:52]} {[%emt
00:00:09]} 2. Nf3 {[%clk 01:31:10]} {[%emt 00:00:14]} d5 {[%clk 01:31:06]}
{[%emt 00:00:16]} 3. Nc3 {[%clk 01:31:15]} {[%emt 00:00:24]} dxe4 {[%clk
01:30:37]} {[%emt 00:00:59]} 4. Nxe4 {[%clk 01:31:36]} {[%emt 00:00:09]} Nd7
{[%clk 01:31:02]} {[%emt 00:00:05]} 5. d4 {[%clk 01:31:46]} {[%emt 00:00:21]}
Ngf6 {[%clk 01:31:09]} {[%emt 00:00:23]} 6. Nxf6+ {[%clk 01:31:49]} {[%emt
00:00:27]} Nxf6 {[%clk 01:31:27]} {[%emt 00:00:11]} 7. Ne5 {[%clk 01:31:32]}
{[%emt 00:00:48]} a6 {[%clk 01:30:53]} {[%emt 00:01:04]} 8. c3 {[%clk
01:24:19]} {[%emt 00:07:43]} c5 {[%clk 01:29:42]} {[%emt 00:01:41]} 9. Bg5
{[%clk 01:16:32]} {[%emt 00:08:16]} cxd4 {[%clk 01:23:25]} {[%emt 00:06:47]} 10.
Qa4+ {[%clk 01:14:53]} {[%emt 00:02:09]} Bd7 {[%clk 01:23:29]} {[%emt
00:00:27]} 11. Qxd4 {[%clk 01:14:02]} {[%emt 00:01:21]} Bb5 {[%clk 01:19:51]}
{[%emt 00:04:07]} 12. Bxb5+ {[%clk 01:08:19]} {[%emt 00:06:15]} axb5 {[%clk
01:20:12]} {[%emt 00:00:09]} 13. Qxd8+ {[%clk 01:06:31]} {[%emt 00:02:18]} Rxd8
{[%clk 01:20:32]} {[%emt 00:00:09]} 14. Ke2 {[%clk 01:05:32]} {[%emt 00:01:29]}
h6 {[%clk 01:19:40]} {[%emt 00:01:22]} 15. Bxf6 {[%clk 00:59:18]} {[%emt
00:06:44]} gxf6 {[%clk 01:20:02]} {[%emt 00:00:08]} 16. Ng4 {[%clk 00:57:55]}
{[%emt 00:01:53]} f5 {[%clk 01:12:50]} {[%emt 00:07:41]} 17. Ne3 {[%clk
00:47:22]} {[%emt 00:11:04]} Bc5 {[%clk 01:12:20]} {[%emt 00:00:59]} 18. Rhd1
{[%clk 00:45:34]} {[%emt 00:02:19]} Rg8 {[%clk 01:09:54]} {[%emt 00:02:56]} 19.
g3 {[%clk 00:42:40]} {[%emt 00:03:24]} Ke7 {[%clk 01:06:28]} {[%emt 00:03:56]}
20. Nc2 {[%clk 00:41:32]} {[%emt 00:01:38]} Rxd1 {[%clk 01:05:13]} {[%emt
00:01:45]} 21. Rxd1 {[%clk 00:41:42]} {[%emt 00:00:20]} h5 {[%clk 01:04:23]}
{[%emt 00:01:19]} 22. Rd2 {[%clk 00:33:07]} {[%emt 00:09:05]} h4 {[%clk
00:56:47]} {[%emt 00:08:06]} 23. b4 {[%clk 00:31:56]} {[%emt 00:01:42]} hxg3
{[%clk 00:55:39]} {[%emt 00:01:38]} 24. hxg3 {[%clk 00:30:37]} {[%emt
00:01:49]} Bd6 {[%clk 00:54:15]} {[%emt 00:01:53]} 25. Nd4 {[%clk 00:25:25]}
{[%emt 00:05:43]} f4 {[%clk 00:53:42]} {[%emt 00:01:02]} 26. gxf4 {[%clk
00:20:43]} {[%emt 00:05:12]} Bxf4 {[%clk 00:53:10]} 1/2-1/2